bitfinex/quotes_ETHUSD_20250411
["timestamp","ask_amount","ask_price","bid_price","bid_amount"]
[1744386442652,23.220188,1566.4,1566.0,13.575]
[1744386443152,10.451838,1566.4,1566.0,0.8039]
[1744386443454,6.38491,1566.2,1566.0,0.8039]
[1744386443658,6.38474,1566.3,1566.0,7.18948]
[1744386444014,6.38375,1566.5,1566.0,0.86774974]
[1744386444215,6.38302,1566.7,1566.3,7.18788]
[1744386444420,8.3727,1566.8,1566.3,7.18809]
[1744386444782,6.38344,1566.6,1566.3,7.18809]
[1744386444988,7.22019,1566.7,1566.3,13.57239]
[1744386445148,14.75548,1566.8,1566.4,6.38391]
[1744386445489,12.76596,1566.7,1566.3,13.57244]
[1744386446286,12.76588,1566.7,1566.3,6.38417]
[1744386446585,8.496738,1566.7,1566.4,6.38404]
[1744386446792,14.879828,1566.7,1566.4,6.38404]
[1744386446989,6.38338,1566.6,1566.3,6.38417]
[1744386447162,12.76693,1566.6,1566.3,6.38417]
[1744386447356,6.38338,1566.6,1566.3,6.38417]
[1744386447568,6.38294,1566.7,1566.3,7.80391355]
[1744386447892,6.38285,1566.7,1566.4,6.38367]
[1744386448198,12.76598,1566.7,1566.4,6.38367]
[1744386448695,6.38325,1566.6,1566.3,7.740268]
[1744386448902,6.38325,1566.6,1566.2,0.7901]
[1744386448903,14.75515,1566.8,1566.2,13.55959]
[1744386449193,6.38367,1566.5,1566.2,7.17484]
[1744386449499,6.38362,1566.6,1566.3,6.38446]
[1744386449795,6.38362,1566.6,1566.3,12.83275924]
[1744386450001,7.858455,1566.7,1566.4,6.38398]
[1744386450168,14.241655,1566.7,1566.3,6.44829925]
[1744386450366,1.4241655,1566.6,1566.4,6.384]
[1744386450568,6.38364,1566.6,1566.2,7.1749]
[1744386450772,1.475515,1566.7,1566.2,7.1749]
[1744386451003,6.38389,1566.5,1566.2,7.17493]
[1744386451172,6.38334,1566.6,1566.2,7.17493]
[1744386451173,12.76678,1566.6,1566.2,13.55968]
[1744386451802,12.76678,1566.6,1566.3,6.38445]
[1744386452104,7.8075695,1566.6,1566.3,12.7688]
[1744386452329,1.4242295,1566.6,1566.3,12.83263882]
[1744386452824,7.8075295,1566.6,1566.3,6.38435]
[1744386452993,1.475515,1566.7,1566.4,6.38383]
[1744386453197,7.858395,1566.7,1566.4,6.38383]
[1744386453586,7.858395,1566.7,1566.4,12.83160356]
[1744386453894,6.38327,1566.6,1566.3,12.76876]
[1744386454205,7.858395,1566.7,1566.4,6.38405]
[1744386454794,14.241385,1566.7,1566.4,6.38405]
[1744386454995,1.4241385,1566.6,1566.4,6.38405]
[1744386455196,14.241385,1566.7,1566.4,6.38405]
[1744386455779,7.858395,1566.7,1566.4,6.38405]
[1744386456186,14.241455,1566.7,1566.4,6.38405]
[1744386456600,7.858395,1566.7,1566.4,12.7681]
[1744386456887,14.241395,1566.7,1566.4,6.38405]
[1744386457096,7.858395,1566.7,1566.4,6.38405]
[1744386457808,1.475515,1566.7,1566.3,6.38437]
[1744386458012,6.3839,1566.5,1566.2,7.17485]
[1744386458313,0.63839,1566.4,1566.2,7.17485]
[1744386458503,6.38369,1566.5,1566.2,7.17485]
[1744386458701,7.14159,1566.5,1566.2,0.7901]
[1744386458917,6.38407,1566.4,1566.2,0.7901]
[1744386459119,12.76828,1566.4,1566.1,6.38516]
[1744386459317,13.52554,1566.5,1566.2,6.38487]
[1744386459634,14.121154,1566.4,1566.1,6.38516]
[1744386459847,7.736724,1566.4,1566.1,6.38527]
[1744386460053,14.121154,1566.4,1566.1,6.38527]
[1744386460743,6.38447,1566.3,1566.0,7.17608]
[1744386461044,6.38592,1566.0,1565.6,7.1466]
[1744386461213,6.38624,1565.9,1565.6,7.1466]
[1744386461646,6.38624,1565.9,1565.5,13.53474]
[1744386461647,12.77264,1565.9,1565.5,13.53474]
[1744386461844,13.92581,1566.0,1565.7,6.3868]
[1744386462010,13.92581,1566.0,1565.6,6.45118677]
[1744386462216,6.38616,1565.9,1565.6,6.38732]
[1744386462416,6.38616,1565.9,1565.6,6.38731]
[1744386462615,6.38664,1565.8,1565.5,7.14701]
[1744386462843,6.38664,1565.8,1565.5,13.53462]
[1744386463349,6.38646,1565.9,1565.5,7.14706]
[1744386463572,7.025186,1565.8,1565.5,13.53465]
[1744386463724,7.025186,1565.8,1565.3,7.14778]
[1744386463725,6.38738,1565.6,1565.3,7.14778]
[1744386464053,6.38738,1565.6,1565.3,6.38849]
[1744386464850,7.791946,1565.8,1565.1,0.8044]
[1744386465055,13.54,1565.8,1565.5,6.38762]
[1744386465344,7.1533,1565.8,1565.5,6.38762]
[1744386465552,7.1533,1565.8,1565.5,12.77521]
[1744386465720,6.09,1565.9,1565.6,6.3872]
[1744386465919,8.62064846,1565.9,1565.7,6.38687]
[1744386466144,25.60249455,1566.0,1565.6,6.38717]
[1744386466339,9.83070455,1566.0,1565.5,7.18019]
[1744386466520,7.54,1566.0,1565.8,6.38621]
[1744386466729,7.54,1566.0,1565.9,6.3861]
[1744386467046,63.69348,1566.3,1566.0,6.38553]
[1744386467352,7.20636,1566.4,1566.0,6.38553]
[1744386467553,13.59071,1566.4,1566.0,12.7711]
[1744386467957,12.76918,1566.3,1566.0,6.38553]
[1744386468158,6.3845,1566.3,1566.0,6.38553]
[1744386468458,12.76912,1566.3,1566.0,6.38553]
[1744386468867,7.20644,1566.4,1566.0,7.662688]
[1744386469227,7.20644,1566.4,1566.1,6.38515]
[1744386469426,13.59066,1566.4,1566.1,6.38515]
[1744386470065,12.47384,1566.5,1566.2,6.38482]
[1744386470231,12.47384,1566.5,1566.2,6.38476]
[1744386470556,15.20865314,1566.6,1566.3,6.38434]
[1744386470761,6.38368,1566.5,1566.2,6.38476]
[1744386470962,6.38368,1566.5,1566.2,12.76951]
[1744386471257,6.38368,1566.5,1566.2,6.38475]
[1744386471759,16.54942531,1566.6,1566.2,6.38475]
[1744386471961,22.93297531,1566.6,1566.3,6.3844]
[1744386472527,16.54942531,1566.6,1566.3,6.3844]
[1744386472738,14.72856,1566.6,1566.3,6.38435]
[1744386472927,21.11203,1566.6,1566.3,6.38435]
[1744386473129,14.72856,1566.6,1566.3,6.38433]
[1744386473331,21.11197,1566.6,1566.3,6.38433]
[1744386473532,21.11213,1566.6,1566.2,12.76952]
[1744386473731,6.38439,1566.4,1566.1,0.7727]
[1744386473961,6.38439,1566.4,1566.1,6.38493]
[1744386474262,12.4417071,1566.6,1566.2,13.59454]
[1744386474263,21.5925062,1566.6,1566.2,13.59454]
[1744386474462,20.29673,1566.6,1566.3,6.38443]
[1744386474764,20.29673,1566.6,1566.2,7.20976]
[1744386474765,6.38385,1566.5,1566.2,7.20976]
[1744386474954,6.38385,1566.5,1566.2,13.59463]
[1744386475472,6.38385,1566.5,1566.2,7.20976]
[1744386475666,8.413569,1566.5,1566.2,0.8251]
[1744386475865,14.797619,1566.5,1566.2,7.20997]
[1744386476087,8.413529,1566.5,1566.2,7.20997]
[1744386476435,13.91336,1566.6,1566.2,7.20985]
[1744386476436,20.29674,1566.6,1566.2,7.20985]
[1744386476631,6.38336,1566.6,1566.2,0.8251]
[1744386476835,3.7547,1566.7,1566.2,0.8251]
[1744386476836,6.38379,1566.5,1566.2,7.20986]
[1744386477059,12.76768,1566.5,1566.2,7.20986]
[1744386477365,6.38379,1566.5,1566.2,13.59463]
[1744386479374,24.05071,1566.7,1566.3,6.44803793]
[1744386479554,8.788331,1566.6,1566.3,6.44803793]
[1744386479737,6.38326,1566.6,1566.3,12.83237794]
[1744386479937,12.76666,1566.6,1566.3,6.44803794]
[1744386480139,12.76666,1566.6,1566.2,13.59478]
[1744386480362,6.38372,1566.5,1566.2,13.59469]
[1744386480774,12.76691,1566.6,1566.2,13.59469]
[1744386480974,15.172071,1566.6,1566.3,6.3843]
[1744386481281,6.3837,1566.5,1566.2,7.20984]
[1744386481444,6.3837,1566.5,1566.2,13.59459]
[1744386481783,6.3837,1566.5,1566.2,0.8251]
[1744386482080,15.171981,1566.6,1566.3,6.38436]
[1744386482244,1.5171981,1566.5,1566.2,13.59474]
[1744386482461,7.9009081,1566.5,1566.2,13.59474]
[1744386482693,13.9129,1566.7,1566.4,6.38389]
[1744386482904,6.38255,1566.8,1566.5,6.38365]
[1744386483071,49.784,1567.0,1566.7,6.38284]
[1744386483394,6.38243,1566.9,1566.5,7.17983]
[1744386483595,11.36083,1566.9,1566.5,13.56337]
[1744386483790,12.76513,1566.8,1566.5,7.17983]
[1744386484189,7.15214,1566.8,1566.4,6.38392]
[1744386484502,7.15214,1566.8,1566.3,7.17153]
[1744386484503,6.3833,1566.6,1566.3,7.17153]
[1744386484796,12.76671,1566.6,1566.3,7.888683]
[1744386485297,12.76671,1566.6,1566.3,7.17153]
[1744386485887,6.38408,1566.4,1566.2,0.7802]
[1744386486271,6.3847,1566.3,1566.0,0.8138]
[1744386486603,12.76953,1566.3,1566.0,7.19946]
[1744386486907,7.17071,1566.5,1566.0,0.87765062]
[1744386487086,6.3841,1566.4,1566.1,6.38524]
[1744386487291,8.88765909,1566.5,1566.2,6.38477]
[1744386487292,8.88769909,1566.5,1566.2,6.38477]
[1744386487495,13.55461,1566.5,1566.2,6.38477]
[1744386487890,6.38408,1566.4,1566.1,6.38516]
[1744386488211,7.17066,1566.5,1566.0,0.8138]
[1744386488212,7.17066,1566.5,1566.2,6.38485]
[1744386488704,6.38428,1566.4,1566.1,6.38517]
[1744386488907,12.76868,1566.4,1566.1,6.38517]
[1744386489080,6.38325,1566.6,1566.3,7.16344]
[1744386489081,6.38335,1566.6,1566.3,7.16344]
[1744386489279,7.529,1566.7,1566.4,12.76784]
[1744386489487,13.91189,1566.7,1566.4,12.76784]
[1744386489708,13.91189,1566.7,1566.4,6.38385]
[1744386490703,20.29486,1566.7,1566.4,6.38385]
[1744386490907,7.529,1566.7,1566.5,6.38345]
[1744386491207,7.529,1566.7,1566.6,7.18235]
[1744386492127,49.784,1567.0,1566.8,6.38241]
[1744386492304,49.784,1567.0,1566.7,6.3827]
[1744386492492,56.16578,1567.0,1566.7,6.3827]
[1744386492677,6.38178,1567.0,1566.7,6.3827]
[1744386493021,6.38178,1567.0,1566.7,7.739194]
[1744386493229,6.38178,1567.0,1566.7,7.739184]
[1744386493522,12.76356,1567.0,1566.7,6.38279]
[1744386493828,6.38204,1566.9,1566.6,7.18221]
[1744386494524,9.9975709,1567.0,1566.5,7.17546]
[1744386494827,6.38257,1566.8,1566.5,7.17546]
[1744386495038,6.3834,1566.6,1566.3,6.38433]
[1744386495242,7.19092,1566.5,1566.1,7.21268]
[1744386495544,6.38407,1566.4,1566.1,13.59783]
[1744386495843,8.2769,1566.3,1565.8,7.21537]
[1744386496003,14.6614,1566.3,1565.9,6.38579]
[1744386496192,7.515,1566.3,1566.0,6.38555]
[1744386496400,7.515,1566.3,1566.1,12.77031]
[1744386496612,0.8213,1566.5,1566.1,0.81]
[1744386496946,0.8213,1566.5,1566.2,6.38458]
[1744386497255,7.20511,1566.5,1566.2,6.3847]
[1744386497455,7.20511,1566.5,1566.2,12.76945]
[1744386497666,7.20511,1566.5,1566.2,6.3847]
[1744386497815,2.93164,1566.5,1566.2,6.38483]
[1744386498014,0.8213,1566.5,1566.2,12.76959]
[1744386498329,13.58886,1566.5,1566.1,7.19515]
[1744386498663,13.58886,1566.5,1566.1,13.58031]
[1744386498831,7.20502,1566.5,1566.1,13.5803]
[1744386499162,7.20502,1566.5,1566.2,6.38483]
[1744386499329,13.58884,1566.5,1566.2,6.38483]
[1744386499526,7.20502,1566.5,1566.2,6.38483]
[1744386499857,13.89833,1566.6,1566.3,6.38436]
[1744386500059,7.515,1566.6,1566.2,6.38478]
[1744386500215,10.1369,1566.7,1566.1,0.7569]
[1744386500420,10.1369,1566.7,1566.4,6.38392]
[1744386500821,10.1369,1566.7,1566.3,6.38437]
[1744386500822,16.51995,1566.7,1566.3,12.76874]
[1744386501022,10.1369,1566.7,1566.3,6.38436]
[1744386501345,63.66854,1566.8,1566.4,6.38394]
[1744386501830,6.38289,1566.7,1566.4,6.38394]
[1744386503459,6.38287,1566.7,1566.4,6.38394]
[1744386503641,6.38287,1566.7,1566.4,12.76787]
[1744386504042,6.38287,1566.7,1566.4,6.38393]
[1744386504441,6.38287,1566.7,1566.4,12.76787]
[1744386504767,12.76587,1566.7,1566.3,13.482946]
[1744386505321,0.8175,1566.6,1565.9,4.3438153]
[1744386505630,12.77013,1566.2,1565.9,6.38608]
[1744386505817,14.71443,1566.3,1565.9,12.77204]
[1744386506012,14.71443,1566.3,1565.8,4.4402509]
[1744386506245,13.89951,1566.3,1565.9,6.386]
[1744386506447,8.561681,1566.2,1565.8,7.21068]
[1744386506638,14.946801,1566.2,1565.8,13.59704]
[1744386506844,8.561681,1566.2,1565.9,12.77203]
[1744386507020,8.561681,1566.2,1565.9,6.38596]
[1744386507222,8.561681,1566.2,1565.8,7.21069]
[1744386507505,7.2415781,1566.1,1565.8,7.21072]
[1744386507666,0.8561681,1566.1,1565.8,7.21066]
[1744386507842,6.38533,1566.1,1565.8,7.21066]
[1744386508240,6.38533,1566.1,1565.8,13.59705]
[1744386508442,8.561741,1566.2,1565.9,6.38609]
[1744386508642,13.57522,1566.4,1566.1,6.38528]
[1744386508963,15.541742,1566.4,1566.1,6.38528]
[1744386509466,8.3227,1566.4,1566.2,6.38488]
[1744386509646,8.3227,1566.4,1566.1,0.7973]
[1744386509647,8.3227,1566.4,1566.1,7.18247]
[1744386509967,14.70681,1566.4,1566.1,13.56762]
[1744386510117,14.70681,1566.4,1566.2,6.38464]
[1744386510118,7.516,1566.4,1566.2,6.38464]
[1744386510318,13.90009,1566.4,1566.1,13.56776]
[1744386510518,6.38499,1566.2,1565.9,7.18321]
[1744386510960,12.77002,1566.2,1565.9,7.18321]
[1744386511318,6.38499,1566.2,1565.9,7.18321]
[1744386511525,12.77006,1566.2,1565.9,7.18321]
[1744386512059,6.38535,1566.1,1565.9,0.7973]
[1744386512220,13.409445,1566.1,1565.8,6.38648]
[1744386512420,6.38575,1566.0,1565.7,13.55801]
[1744386512623,6.38498,1566.2,1565.9,6.38591]
[1744386512870,12.7701,1566.2,1565.9,6.38591]
[1744386513076,6.38498,1566.2,1565.9,12.77189]
[1744386513237,19.99018,1566.4,1566.1,6.38517]
[1744386513445,26.37453,1566.4,1566.1,6.38517]
[1744386513644,13.606,1566.4,1566.2,6.38484]
[1744386513955,13.90018,1566.4,1566.1,12.77045]
[1744386514457,13.90018,1566.4,1566.1,12.77033]
[1744386514671,13.90018,1566.4,1566.1,6.38516]
[1744386514870,6.38454,1566.3,1566.0,7.21648]
[1744386515176,6.38492,1566.2,1566.0,0.8309]
[1744386515469,6.38454,1566.3,1566.0,0.8309]
[1744386515673,6.38454,1566.3,1566.0,7.21643]
[1744386515876,6.38454,1566.3,1566.0,0.8309]
[1744386516080,6.38491,1566.2,1565.8,6.38641]
[1744386516376,6.38591,1566.0,1565.7,6.38679]
[1744386516571,6.38589,1566.0,1565.7,6.38679]
[1744386516944,6.38583,1566.0,1565.6,7.164]
[1744386517133,6.38583,1566.0,1565.6,0.7768]
[1744386517331,0.825,1566.2,1565.8,6.38651]
[1744386517531,6.38508,1566.2,1565.9,7.826751]
[1744386517762,6.3845,1566.3,1566.0,6.38557]
[1744386518162,6.3845,1566.3,1566.0,12.77115]
[1744386518372,14.66938,1566.4,1566.1,12.77054]
[1744386518669,6.38448,1566.3,1566.0,12.77116]
[1744386518876,6.38488,1566.2,1565.9,13.57395]
[1744386519045,6.38488,1566.2,1565.9,13.57393]
[1744386519242,6.38456,1566.3,1566.0,6.38537]
[1744386519457,8.2852,1566.4,1566.1,6.44884183]
[1744386519771,8.2852,1566.4,1566.2,6.38484]
[1744386519976,14.66946,1566.4,1566.1,6.38516]
[1744386520133,16.136406,1566.4,1566.1,6.38516]
[1744386520334,6.3845,1566.3,1566.0,12.77114]
[1744386520533,12.76931,1566.3,1566.0,6.38557]
[1744386520768,6.3845,1566.3,1566.0,12.77114]
[1744386520975,0.762,1566.6,1566.0,0.7687]
[1744386521156,7.14542,1566.6,1566.3,7.15304]
[1744386521357,8.468962,1566.6,1566.2,6.38482]
[1744386521875,14.852412,1566.6,1566.3,6.3844]
[1744386522045,8.468962,1566.6,1566.2,6.38475]
[1744386522241,0.7766,1566.8,1566.1,3.7687]
[1744386522472,0.7766,1566.8,1566.5,6.38351]
[1744386522473,7.15915,1566.8,1566.5,6.38351]
[1744386523039,13.54178,1566.8,1566.5,6.38351]
[1744386523237,13.5418,1566.8,1566.5,6.38351]
[1744386523938,7.15915,1566.8,1566.5,6.38351]
[1744386524137,0.7766,1566.8,1566.6,6.38313]
[1744386524563,7.15912,1566.8,1566.5,6.38351]
[1744386524732,7.92215653,1566.8,1566.5,6.38351]
[1744386524933,14.30476653,1566.8,1566.4,7.20155]
[1744386525479,7.92215653,1566.8,1566.5,6.38362]
[1744386525682,13.54179,1566.8,1566.5,6.38362]
[1744386525876,13.54179,1566.8,1566.5,12.76716]
[1744386525877,0.7766,1566.8,1566.5,12.76716]
[1744386526077,12.76435,1566.9,1566.6,6.3832]
[1744386526295,6.38216,1566.9,1566.6,6.3832]
[1744386526584,6.38216,1566.9,1566.4,0.8176]
[1744386526585,6.38269,1566.8,1566.4,7.20156]
[1744386526769,6.38301,1566.7,1566.4,13.58552]
[1744386526944,6.38301,1566.7,1566.4,7.20156]
[1744386527145,7.16474,1566.8,1566.4,7.20156]
[1744386527146,13.5474,1566.8,1566.4,7.20156]
[1744386527483,7.16477,1566.8,1566.5,6.38365]
[1744386527676,7.16477,1566.8,1566.5,12.76718]
[1744386527878,10.850276,1566.9,1566.6,6.38318]
[1744386527879,9.38204,1566.9,1566.6,6.38318]
[1744386528051,15.76437,1566.9,1566.6,6.38318]
[1744386528678,9.38204,1566.9,1566.6,6.38318]
[1744386528839,9.38204,1566.9,1566.6,12.76628]
[1744386529179,3.0,1566.9,1566.6,7.659768]
[1744386529342,9.38216,1566.9,1566.6,7.659768]
[1744386529543,9.38216,1566.9,1566.6,6.38314]
[1744386529743,9.38216,1566.9,1566.6,12.76627]
[1744386529946,21.08568,1567.0,1566.7,6.38281]
[1744386530144,6.38215,1566.9,1566.6,6.38313]
[1744386530469,6.38261,1566.8,1566.5,6.38355]
[1744386530668,7.1995,1566.7,1566.4,0.8176]
[1744386530869,6.38332,1566.6,1566.4,0.8176]
[1744386531047,7.1995,1566.7,1566.4,0.8176]
[1744386531246,0.8165,1566.7,1566.4,7.20129]
[1744386531558,0.8165,1566.7,1566.5,6.38356]
[1744386532382,13.56415,1566.9,1566.6,6.38325]
[1744386532611,13.56407,1566.9,1566.6,6.38325]
[1744386532815,13.56416,1566.9,1566.6,6.38325]
[1744386533024,6.38248,1566.8,1566.5,6.38357]
[1744386533183,3.8219,1566.7,1566.2,0.8233]
[1744386533511,6.38421,1566.4,1566.2,0.8233]
[1744386533717,6.38401,1566.5,1566.2,0.8233]
[1744386533921,12.76802,1566.5,1566.2,0.8233]
[1744386534079,6.38407,1566.4,1566.2,0.8233]
[1744386534573,6.38407,1566.4,1566.0,7.19199]
[1744386534574,6.38478,1566.3,1566.0,7.19199]
[1744386535004,2.032478,1566.4,1565.7,4.54419146]
[1744386535310,12.77008,1566.2,1565.9,6.38607]
[1744386535991,6.38473,1566.3,1565.9,12.77205]
[1744386536201,6.38498,1566.2,1565.9,6.38598]
[1744386536398,13.52438,1566.4,1566.0,6.38543]
[1744386536597,6.3845,1566.3,1566.0,6.38543]
[1744386536799,12.76918,1566.3,1566.0,6.38543]
[1744386537180,12.76912,1566.3,1566.0,6.38543]
[1744386537385,15.176508,1566.4,1566.1,7.16735]
[1744386538215,6.38417,1566.4,1566.1,7.16735]
[1744386538623,6.38417,1566.4,1566.1,7.16728]
[1744386538812,6.38417,1566.4,1566.1,7.16738]
[1744386538987,12.76864,1566.4,1566.1,7.16738]
[1744386539231,6.38417,1566.4,1566.1,7.16738]
[1744386539522,20.77562,1566.6,1566.3,6.38433]
[1744386539814,6.3837,1566.5,1566.2,7.101488]
[1744386540016,6.3837,1566.5,1566.2,13.486238]
[1744386540385,56.15386,1566.7,1566.4,0.7701]
[1744386540586,6.38326,1566.6,1566.4,0.7701]
[1744386540785,6.38326,1566.6,1566.4,1.485551]
[1744386540987,63.65586,1566.7,1566.4,14.253531]
[1744386541616,57.273,1566.7,1566.5,12.76726]
[1744386541792,7.502,1566.7,1566.6,6.38325]
[1744386542119,6.38248,1566.8,1566.5,12.76707]
[1744386542321,6.38248,1566.8,1566.6,1.276707]
[1744386542486,12.76511,1566.8,1566.5,6.38352]
[1744386542817,6.38288,1566.7,1566.4,1.485551]
[1744386543116,6.38328,1566.6,1566.3,7.18671]
[1744386543293,6.38332,1566.6,1566.3,0.8024]
[1744386543498,13.5528,1566.7,1566.4,6.38402]
[1744386543696,6.38297,1566.7,1566.4,6.38393]
[1744386543921,13.51536,1566.8,1566.5,6.38347]
[1744386544109,13.51536,1566.8,1566.5,7.66021]
[1744386544889,13.51533,1566.8,1566.5,7.66021]
[1744386545222,6.38284,1566.7,1566.5,1.27674]
[1744386545715,13.88386,1567.0,1566.7,6.38283]
[1744386545918,13.88377,1567.0,1566.7,12.76556]
[1744386546095,20.26554,1567.0,1566.8,1.276556]
[1744386546309,20.26554,1567.0,1566.7,6.38273]
[1744386546310,13.88377,1567.0,1566.7,6.38273]
[1744386546518,7.502,1567.0,1566.7,6.44653266]
[1744386546823,7.502,1567.0,1566.8,6.38216]
[1744386547223,13.88363,1567.0,1566.6,7.21633]
[1744386547523,13.88363,1567.0,1566.7,6.38281]
[1744386547693,20.26541,1567.0,1566.7,7.742722]
[1744386547895,7.502,1567.0,1566.7,1.359912]
[1744386548091,12.76432,1566.9,1566.6,7.21631]
[1744386548418,6.38213,1566.9,1566.6,13.59942]
[1744386548620,6.38213,1566.9,1566.6,13.59943]
[1744386549028,7.502,1567.0,1566.5,7.66032]
[1744386549212,6.38296,1566.7,1566.4,7.15959]
[1744386549601,6.38255,1566.8,1566.4,0.83953373]
[1744386549813,6.38255,1566.8,1566.5,12.76694]
[1744386550008,7.18709,1566.9,1566.6,6.3832]
[1744386550204,13.56934,1566.9,1566.5,12.76712]
[1744386550419,6.38255,1566.8,1566.4,7.15959]
[1744386550617,12.76537,1566.8,1566.4,13.54359]
[1744386550796,12.76537,1566.8,1566.4,13.54353]
[1744386550797,6.38285,1566.7,1566.4,13.54353]
[1744386551005,6.38253,1566.8,1566.5,6.38363]
[1744386551204,6.38253,1566.8,1566.5,12.76714]
[1744386551429,12.76513,1566.8,1566.5,6.38351]
[1744386551635,12.76512,1566.8,1566.5,6.38351]
[1744386552004,6.38286,1566.7,1566.4,7.15965]
[1744386552204,7.9502654,1566.8,1566.4,7.15963]
[1744386552543,2.912134,1566.9,1566.6,6.38319]
[1744386552544,9.294254,1566.9,1566.6,6.38319]
[1744386552700,13.592,1567.0,1566.6,0.7535]
[1744386552905,13.592,1567.0,1566.8,6.38236]
[1744386553330,19.97375,1567.0,1566.7,6.38248]
[1744386553533,6.38204,1566.9,1566.7,1.351917]
[1744386553734,19.97375,1567.0,1566.6,0.7535]
[1744386553924,19.97375,1567.0,1566.7,6.38263]
[1744386554105,26.35568,1567.0,1566.7,6.38263]
[1744386554307,19.97375,1567.0,1566.7,12.76536]
[1744386554525,19.97375,1567.0,1566.7,6.38263]
[1744386554741,19.97375,1567.0,1566.6,13.51976]
[1744386555061,26.35568,1567.0,1566.7,6.38282]
[1744386555261,22.684658,1567.0,1566.7,6.38273]
[1744386555407,22.684658,1567.0,1566.7,12.76545]
[1744386555738,22.684658,1567.0,1566.6,7.13663]
[1744386555739,13.592,1567.0,1566.6,7.13663]
[1744386555942,13.592,1567.0,1566.6,6.38314]
[1744386555943,12.76435,1566.9,1566.6,6.38314]
[1744386556148,6.38217,1566.9,1566.5,6.38354]
[1744386556443,12.76516,1566.8,1566.5,6.38354]
[1744386556610,6.38287,1566.7,1566.4,13.58518]
[1744386556809,7.19185,1566.8,1566.5,6.38363]
[1744386557117,14.293855,1566.8,1566.4,13.58526]
[1744386557320,7.911035,1566.8,1566.5,12.7671]
[1744386557544,7.19185,1566.8,1566.5,12.83092052]
[1744386557764,7.19185,1566.8,1566.5,12.76708]
[1744386558269,13.57443,1566.8,1566.5,6.38354]
[1744386558565,7.19193,1566.8,1566.4,7.20124]
[1744386558765,13.57476,1566.8,1566.4,13.58518]
[1744386559069,6.3829,1566.7,1566.4,13.58517]
[1744386559367,7.19186,1566.8,1566.5,6.38357]
[1744386559670,6.38215,1566.9,1566.5,6.38365]
[1744386559854,8.3096,1567.0,1566.5,6.38365]
[1744386560059,6.3827,1566.8,1566.5,6.38365]
[1744386560255,6.38225,1566.9,1566.6,6.38314]
[1744386560566,6.38225,1566.9,1566.5,6.38354]
[1744386560567,6.38202,1566.9,1566.5,6.38354]
[1744386560768,6.38268,1566.8,1566.5,12.76708]
[1744386560944,6.38268,1566.8,1566.6,6.38322]
[1744386561147,12.76436,1566.9,1566.6,6.38322]
[1744386561362,12.76436,1566.9,1566.5,6.38354]
[1744386561363,6.38258,1566.8,1566.5,6.38354]
[1744386561880,6.38258,1566.8,1566.5,12.76707]
[1744386562282,6.38258,1566.8,1566.5,6.38353]
[1744386562458,12.76518,1566.8,1566.5,6.38353]
[1744386562654,8.3096,1567.0,1566.5,1.358475]
[1744386562875,21.07315,1567.0,1566.7,6.38269]
[1744386563077,21.0732,1567.0,1566.7,6.38269]
[1744386563278,7.502,1567.0,1566.7,0.83372394]
[1744386563482,7.502,1567.0,1566.7,7.21647394]
[1744386563685,13.8838,1567.0,1566.7,13.5354]
[1744386563984,13.8838,1567.0,1566.7,0.7699]
[1744386563985,6.38215,1566.9,1566.7,0.7699]
[1744386564187,0.7625,1566.9,1566.6,6.3831]
[1744386564482,8.2645,1567.0,1566.6,6.3831]
[1744386564685,14.64642,1567.0,1566.7,6.38257]
[1744386564884,23.739991,1567.0,1566.7,6.38257]
[1744386565183,23.739991,1567.0,1566.6,12.76625]
[1744386565184,6.38214,1566.9,1566.6,12.76625]
[1744386565384,12.76435,1566.9,1566.6,6.38311]
[1744386565586,6.38214,1566.9,1566.6,12.76625]
[1744386566087,6.38294,1566.7,1566.4,6.38394]
[1744386566289,7.795784,1566.7,1566.4,6.38373]
[1744386566583,7.795784,1566.7,1566.4,12.76766]
[1744386566754,6.38257,1566.8,1566.5,6.38358]
[1744386566954,6.38257,1566.8,1566.5,12.76716]
[1744386567156,6.38257,1566.8,1566.5,12.76713]
[1744386567368,13.53862,1566.9,1566.6,6.38319]
[1744386567565,16.595451,1567.0,1566.5,0.7805]
[1744386567768,6.38203,1566.9,1566.6,12.7663]
[1744386567963,6.38203,1566.9,1566.6,12.76626]
[1744386568169,6.38234,1566.9,1566.6,6.38314]
[1744386568370,6.38234,1566.9,1566.6,6.38312]
[1744386568565,6.38232,1566.9,1566.6,7.099482]
[1744386568789,12.76459,1566.9,1566.6,7.099482]
[1744386568989,6.38217,1566.9,1566.6,6.38312]
[1744386569162,12.76449,1566.9,1566.6,6.38312]
[1744386569692,6.38217,1566.9,1566.6,6.38314]
[1744386569889,6.38217,1566.9,1566.5,7.16402]
[1744386570072,6.38244,1566.8,1566.5,7.16402]
[1744386570483,0.7977,1566.7,1566.4,12.76786]
[1744386570669,6.38337,1566.6,1566.3,7.18826]
[1744386570990,0.7977,1566.7,1566.5,6.38363]
[1744386570991,7.18063,1566.7,1566.5,6.38363]
[1744386571197,6.38253,1566.8,1566.5,12.76726]
[1744386571397,12.76509,1566.8,1566.5,6.38363]
[1744386571694,6.38286,1566.7,1566.5,6.38364]
[1744386571905,6.38286,1566.7,1566.4,12.76788]
[1744386572121,6.38286,1566.7,1566.4,6.38388]
[1744386572403,12.76599,1566.7,1566.4,6.38388]
[1744386572696,6.38286,1566.7,1566.4,12.76782]